bitfinex-derivatives/quotes_BTCF0:USTF0_20251119
["timestamp","ask_amount","ask_price","bid_price","bid_amount"]
[1763581891074,0.06170267,89035.0,89034.0,0.00219803]
[1763581891384,0.01922,89026.0,89020.0,0.3608]
[1763581891589,0.00073267,89025.0,89021.0,0.00219803]
[1763581891973,0.06176,89022.0,89021.0,0.00219803]
[1763581892174,0.06249267,89022.0,89021.0,0.00219803]
[1763581893278,0.06249267,89022.0,89014.0,0.00016851]
[1763581893279,0.05999,89015.0,89014.0,0.00016851]
[1763581893474,0.01922,89026.0,89014.0,0.00236654]
[1763581893679,0.01922,89026.0,89024.0,0.1124563]
[1763581893979,0.01922,89026.0,89025.0,0.00219803]
[1763581893980,0.07994267,89026.0,89025.0,0.00219803]
[1763581894377,0.3608,89036.0,89035.0,0.1124425]
[1763581894577,0.00073267,89036.0,89035.0,0.11464053]
[1763581894987,0.3608,89056.0,89055.0,0.1124173]
[1763581895286,0.01922,89063.0,89055.0,0.00219803]
[1763581895287,0.07921,89063.0,89055.0,0.00219803]
[1763581895475,0.05999,89056.0,89055.0,0.00219803]
[1763581895675,0.06072267,89056.0,89055.0,0.00219803]
[1763581897186,0.06072267,89056.0,89048.0,0.1124259]
[1763581897187,0.05999,89048.0,89047.0,0.00016851]
[1763581897379,0.06072267,89048.0,89047.0,0.00236654]
[1763581899579,0.06072267,89048.0,89035.0,0.3608]
[1763581899580,0.05999,89036.0,89035.0,0.3608]
[1763581899779,0.05999,89036.0,89035.0,0.00219803]
[1763581899780,0.06072267,89036.0,89035.0,0.00219803]
[1763581900182,0.00073267,89036.0,89035.0,0.02919803]
[1763581900390,0.06072267,89036.0,89035.0,0.00219803]
[1763581900879,0.05999,89028.0,89027.0,0.00016851]
[1763581901085,0.06072267,89028.0,89027.0,0.00236654]
[1763581901589,0.06072267,89028.0,89027.0,0.00016851]
[1763581901990,0.06072267,89028.0,89027.0,0.00236654]
[1763581903288,0.06072267,89028.0,89027.0,0.00016851]
[1763581903488,0.06072267,89028.0,89027.0,0.00236654]
[1763581904392,0.06072267,89028.0,89027.0,0.11481924]
[1763581904690,0.06072267,89028.0,89027.0,0.00236654]
[1763581904889,0.02999267,89028.0,89027.0,0.02936654]
[1763581905091,0.06072267,89028.0,89027.0,0.00236654]
[1763581905293,0.06072267,89028.0,89027.0,0.00016851]
[1763581905492,0.05999,89014.0,89013.0,7.886e-05]
[1763581905791,0.05999,89014.0,89013.0,0.11474719]
[1763581905792,0.06072267,89014.0,89013.0,0.11474719]
[1763581906586,0.06072267,89014.0,89013.0,0.12841719]
[1763581906988,0.06015851,89022.0,89021.0,0.1124602]
[1763581907294,0.06089118,89022.0,89021.0,0.11465823]
[1763581907684,0.06089118,89022.0,89021.0,0.12832823]
[1763581908093,0.00090118,89022.0,89021.0,0.14199823]
[1763581908293,0.00090118,89022.0,89021.0,0.00219803]
[1763581908294,0.06089118,89022.0,89021.0,0.00219803]
[1763581910290,0.05999,89014.0,89013.0,7.886e-05]
[1763581910601,0.06072267,89014.0,89013.0,7.886e-05]
[1763581911898,0.06072267,89014.0,89013.0,0.00227689]
[1763581912301,0.42152267,89014.0,89013.0,0.00227689]
[1763581915302,0.06072267,89014.0,89013.0,0.11474719]
[1763581915903,0.00073267,89014.0,89013.0,0.14208719]
[1763581916097,0.02999267,89014.0,89013.0,0.14208719]
[1763581916302,0.06072267,89014.0,89013.0,0.00227689]
[1763581916894,0.0185,89016.0,89014.0,0.112469]
[1763581917103,0.13826851,89022.0,89021.0,0.1398002]
[1763581917401,0.13900118,89022.0,89021.0,0.14199823]
[1763581917606,0.16973118,89022.0,89021.0,0.00219803]
[1763581918101,0.16973118,89022.0,89021.0,0.02953803]
[1763581918304,0.00016851,89022.0,89021.0,0.39033803]
[1763581918503,0.3608,89033.0,89032.0,0.1397863]
[1763581918690,0.3608,89033.0,89032.0,0.14198433]
[1763581919005,0.07849,89040.0,89039.0,0.1124375]
[1763581919207,0.07922267,89040.0,89039.0,0.11463553]
[1763581919607,0.07922267,89040.0,89039.0,0.00219803]
[1763581919810,0.07922267,89040.0,89031.0,0.00016851]
[1763581919811,0.05999,89032.0,89031.0,0.00016851]
[1763581920108,0.42152267,89032.0,89031.0,0.00016851]
[1763581920499,0.42152267,89032.0,89015.0,0.04033161]
[1763581920500,0.05999,89016.0,89015.0,0.04033161]
[1763581920705,0.05999,89016.0,89015.0,0.00219803]
[1763581920706,0.06072267,89016.0,89015.0,0.00219803]
[1763581921406,0.06072267,89016.0,89008.0,0.04033161]
[1763581921407,0.05999,89014.0,89008.0,0.04033161]
[1763581921612,0.06072267,89014.0,89013.0,0.00227689]
[1763581922305,0.06072267,89014.0,89013.0,0.11474719]
[1763581922703,0.06172267,89014.0,89013.0,0.00227689]
[1763581923907,0.06172267,89014.0,89013.0,7.886e-05]
[1763581924612,0.06072267,89014.0,89013.0,7.886e-05]
[1763581924808,0.05826,89008.0,89000.0,0.04033161]
[1763581925009,0.05826,88996.0,88995.0,0.1124922]
[1763581925214,0.05826,88992.0,88990.0,0.04033161]
[1763581925409,0.05899267,88991.0,88990.0,0.1124993]
[1763581925606,0.05899267,88991.0,88990.0,0.00219803]
[1763581926009,0.059109,88991.0,88990.0,0.00219803]
[1763581926609,0.060109,88991.0,88990.0,0.00219803]
[1763581927015,0.05826,88984.0,88982.0,0.04050012]
[1763581927216,0.05899267,88983.0,88982.0,0.00236654]
[1763581928415,0.00073267,88983.0,88982.0,0.06334654]
[1763581928615,0.00011633,88991.0,88990.0,0.1734793]
[1763581928817,0.028799,88991.0,88990.0,0.17567733]
[1763581929019,0.059109,88991.0,88990.0,0.00219803]
[1763581929323,0.059109,88991.0,88990.0,0.04253272]
[1763581929523,0.059109,88991.0,88990.0,0.36299803]
[1763581929726,0.000849,88991.0,88990.0,0.42397803]
[1763581929921,0.00011633,88991.0,88990.0,0.42397803]
[1763581931019,0.10884,89000.0,88998.0,0.06098]
[1763581931321,0.46964,89016.0,88998.0,0.42397803]
[1763581932518,0.46964,89016.0,88998.0,0.48448007]
[1763581932719,0.00116851,88999.0,88998.0,0.48448007]
[1763581933125,0.00116851,88999.0,88998.0,0.42397803]
[1763581934222,0.05916118,88999.0,88998.0,0.40335526]
[1763581934620,0.05916118,88999.0,88985.0,0.08774816]
[1763581934621,0.05826,88990.0,88989.0,0.04035723]
[1763581934817,0.02811851,88999.0,88998.0,0.06098]
[1763581935123,0.05916118,88999.0,88998.0,0.00219803]
[1763581935631,0.06016118,88999.0,88998.0,0.00219803]
[1763581935923,0.00190118,88999.0,88998.0,0.06317803]
[1763581936130,0.02985118,88999.0,88998.0,0.06317803]
[1763581936828,0.3608,89018.0,89000.0,0.3374601]
[1763581937036,0.3608,89036.0,89023.0,0.1419876]
[1763581937223,0.04718267,89024.0,89023.0,0.14418563]
[1763581937935,0.02868267,89024.0,89023.0,0.17563563]
[1763581938131,0.05842851,89032.0,89031.0,0.1124475]
[1763581938331,0.05916118,89032.0,89031.0,0.11464553]
[1763581938926,0.00090118,89032.0,89031.0,0.17562553]
[1763581939432,0.02795,89040.0,89039.0,0.1734174]
[1763581939621,0.07920503,89083.0,89039.0,0.1734174]
[1763581939622,0.3608,89064.0,89045.0,0.02953]
[1763581939820,0.05854076,89046.0,89045.0,0.00219803]
[1763581940734,0.05826,89027.0,89026.0,0.04033235]
[1763581940925,0.001,89032.0,89026.0,0.06317803]
[1763581941131,0.02795,89031.0,89030.0,0.1124477]
[1763581941430,0.02795,89031.0,89030.0,0.11464573]
[1763581941632,0.05826,89031.0,89030.0,0.11464573]
[1763581942030,0.05826,89031.0,89030.0,0.00219803]
[1763581942926,0.01851,89037.0,89030.0,0.00219803]
[1763581943128,0.01851,89037.0,89033.0,0.1124442]
[1763581943336,0.07677,89037.0,89036.0,0.11463923]
[1763581943531,0.00016851,89039.0,89038.0,0.06098]
[1763581943736,0.00016851,89039.0,89038.0,0.06317803]
[1763581945123,0.00028076,89046.0,89045.0,0.1734099]
[1763581945325,0.40726,89063.0,89045.0,0.36299803]
[1763581945530,0.05382,89046.0,89045.0,0.00219803]
[1763581946235,0.05382,89039.0,89038.0,0.3608]
[1763581946438,0.05382,89021.0,89020.0,0.74143698]
[1763581946635,0.36299803,89039.0,89020.0,0.74143698]
[1763581946636,0.00219803,89039.0,89038.0,0.1124387]
[1763581946833,0.02905803,89039.0,89038.0,0.13834137]
[1763581947133,0.05601803,89039.0,89038.0,0.11317137]
[1763581947435,0.00219803,89039.0,89038.0,0.16486137]
[1763581947932,0.00319803,89039.0,89038.0,0.16486137]
[1763581948336,0.00219803,89039.0,89038.0,0.16486137]
[1763581948634,0.00016851,89047.0,89046.0,0.1641186]
[1763581948832,0.00016851,89047.0,89046.0,0.52565127]
[1763581949034,0.43313,89063.0,89062.0,0.1124084]
[1763581949337,0.43532803,89063.0,89062.0,0.00073267]
[1763581950132,0.00219803,89063.0,89062.0,0.05242267]
[1763581950336,0.07221803,89063.0,89062.0,0.05242267]
[1763581950539,0.07221803,89063.0,89062.0,0.00073267]
[1763581950731,0.07421803,89063.0,89062.0,0.11314107]
[1763581951431,0.07421803,89063.0,89062.0,0.00073267]
[1763581952841,0.07421803,89063.0,89062.0,0.11314107]
[1763581953040,0.07421803,89063.0,89062.0,0.00073267]
[1763581954235,0.07421803,89063.0,89062.0,0.41332267]
[1763581954435,0.00419803,89063.0,89062.0,0.41332267]
[1763581955331,0.00016851,89071.0,89062.0,0.41332267]
[1763581955531,0.05101851,89071.0,89062.0,0.36153267]
[1763581955732,0.05085,89067.0,89066.0,0.1124013]
[1763581955927,0.00016851,89071.0,89070.0,0.1641883]
[1763581956131,0.00016851,89071.0,89070.0,0.52718633]
[1763581956531,0.00216851,89071.0,89070.0,0.52718633]
[1763581957737,0.05201851,89071.0,89070.0,0.36299803]
[1763581958740,0.05201851,89071.0,89070.0,0.47539633]
[1763581960331,0.05201851,89071.0,89070.0,0.36299803]
[1763581961243,0.05201851,89071.0,89070.0,0.41478803]
[1763581961739,0.02617851,89071.0,89070.0,0.41478803]
[1763581962138,0.00116851,89071.0,89070.0,0.41478803]
[1763581963330,0.05201851,89071.0,89070.0,0.41478803]
[1763581963941,0.00116851,89071.0,89070.0,0.41478803]
[1763581964540,0.02617851,89071.0,89070.0,0.41478803]
[1763581964746,0.05201851,89071.0,89070.0,0.38830803]
[1763581964933,0.05201851,89071.0,89070.0,0.00219803]
[1763581965136,0.05201851,89071.0,89062.0,0.3608]
[1763581965137,0.05085,89063.0,89062.0,0.3608]
[1763581965337,0.05085,89055.0,89051.0,0.3608]
[1763581965738,0.05085,89055.0,89033.0,0.3608]
[1763581965739,0.06637,89034.0,89033.0,0.3608]
[1763581965932,0.06637,89034.0,89033.0,0.47544303]
[1763581966137,0.01552,89045.0,89044.0,0.1124311]
[1763581966138,0.06637,89045.0,89044.0,0.1124311]
[1763581966444,0.06637,89045.0,89044.0,0.11462913]
[1763581966644,0.06637,89045.0,89044.0,0.00219803]
[1763581967838,0.0193,89021.0,89020.0,0.02531]
[1763581968137,0.0193,89021.0,89020.0,0.02750803]
[1763581968350,0.3608,89027.0,89026.0,0.02531]
[1763581968545,0.0193,89021.0,89020.0,0.00219803]
[1763581968739,0.0193,89021.0,89020.0,0.05398803]
[1763581969541,0.0193,89021.0,89020.0,0.00219803]
[1763581969936,0.0193,89021.0,89018.0,0.00010743]
[1763581969937,0.0193,89019.0,89018.0,0.00010743]
[1763581970544,0.0193,89013.0,89001.0,0.0078]
[1763581970845,0.3801,89013.0,89001.0,0.0078]
[1763581971344,0.3801,89013.0,88992.0,0.1285357]
[1763581971540,0.01896,89007.0,88992.0,0.01604]
[1763581972334,0.01896,89007.0,88994.0,0.1124943]
[1763581972536,0.01896,89007.0,88998.0,0.00016851]
[1763581973342,0.01896,88999.0,88998.0,0.00016851]
[1763581973539,0.48866927,88999.0,88998.0,0.00016851]
[1763581974240,0.48866927,88999.0,88998.0,0.05415654]
[1763581974241,0.47918927,88999.0,88998.0,0.05415654]
[1763581974444,0.47918927,88999.0,88998.0,0.00236654]
[1763581974445,0.48866927,88999.0,88998.0,0.00236654]
[1763581974642,0.48866927,88999.0,88998.0,0.00016851]
[1763581975636,0.48866927,88999.0,88998.0,0.05415654]
[1763581976252,0.01906927,88999.0,88998.0,0.05415654]
[1763581976457,0.00010927,88999.0,88998.0,0.05415654]
[1763581976950,0.01906927,88999.0,88998.0,0.05415654]
[1763581977153,0.37986927,88999.0,88998.0,0.05415654]
[1763581977346,0.01906927,88999.0,88998.0,0.05415654]
[1763581977546,0.00016851,89007.0,88999.0,0.112488]
[1763581977748,0.3608,89028.0,89026.0,0.1124535]
[1763581977749,0.01918,89027.0,89026.0,0.1124535]
[1763581978049,0.12802,89027.0,89026.0,0.00219803]
[1763581978952,0.12902,89027.0,89026.0,0.00219803]
[1763581979345,0.01918,89027.0,89026.0,0.00219803]
[1763581979539,0.12902,89027.0,89026.0,0.05398803]
[1763581980051,0.12902,89027.0,89026.0,0.00219803]
[1763581980753,0.12902,89027.0,89018.0,0.00016851]
[1763581980940,0.00959,89020.0,89019.0,0.00219803]
[1763581981145,0.01918,89020.0,89019.0,0.00219803]
[1763581981654,0.01918,89020.0,89019.0,0.02750803]
[1763581981953,0.10984,89027.0,89026.0,0.1615637]
[1763581982142,0.10984,89027.0,89026.0,0.16376173]
[1763581982447,0.10884,89027.0,89026.0,0.16376173]
[1763581982848,0.12106,89027.0,89026.0,0.05130803]
[1763581983045,0.12206,89027.0,89026.0,0.05130803]
[1763581983248,0.10984,89027.0,89026.0,0.05130803]
[1763581983943,0.00016851,89035.0,89034.0,0.04911]
[1763581984147,0.00016851,89035.0,89034.0,0.16375173]
[1763581984547,0.10884,89044.0,89043.0,0.1615423]
[1763581984754,0.10884,89044.0,89043.0,0.16374033]
[1763581987247,0.12306,89044.0,89043.0,0.05130803]
[1763581987653,0.12306,89044.0,89043.0,0.00219803]
[1763581988751,0.00711,89034.0,89033.0,0.02362]
[1763581988948,0.00711,89034.0,89033.0,0.02581803]
[1763581989143,0.12306,89044.0,89043.0,0.02362]
[1763581989355,0.01422,89035.0,89034.0,0.1615531]
[1763581989552,0.01422,89042.0,89041.0,0.1124337]
[1763581989847,0.01422,89042.0,89041.0,0.02581803]
[1763581990656,0.01422,89042.0,89020.0,0.21322425]
[1763581990953,0.01422,89032.0,89031.0,0.00219803]
[1763581994878,0.01422,89019.0,89018.0,0.00016851]
[1763581995061,0.01422,89019.0,89018.0,0.00236654]
[1763581995451,0.01422,89019.0,89018.0,0.02598654]
[1763581995849,0.01422,89019.0,89018.0,0.05147654]
[1763581996755,0.00711,89019.0,89018.0,0.05147654]
[1763581997459,0.11595,89024.0,89023.0,0.1615676]
[1763581997762,0.12306,89024.0,89023.0,0.06711803]
[1763581997949,0.12306,89024.0,89023.0,0.00219803]
[1763581998962,0.12306,89024.0,89018.0,0.00016851]
[1763581998963,0.01422,89019.0,89018.0,0.00016851]
[1763581999155,0.37502,89019.0,89018.0,0.00016851]
[1763581999661,0.37502,89019.0,89018.0,0.04927851]
[1763581999858,0.37502,89019.0,89018.0,0.05147654]
[1763582000071,0.37502,89019.0,89018.0,0.16394044]
[1763582000372,0.37502,89019.0,89018.0,0.05147654]
[1763582001367,0.37502,89019.0,89018.0,0.00236654]
[1763582001865,0.37502,89019.0,89018.0,0.00016851]
[1763582003166,0.00016851,89027.0,89018.0,0.16394044]
[1763582003352,0.3608,89036.0,89035.0,0.04911]
[1763582003548,0.10884,89055.0,89050.0,0.01581]
[1763582003549,0.01422,89051.0,89050.0,0.01581]
[1763582003954,0.01422,89041.0,89040.0,0.03943]
[1763582004156,0.10342,89041.0,89040.0,0.00219803]
[1763582004462,0.46422,89041.0,89040.0,0.00219803]
[1763582005064,0.01422,89033.0,89032.0,0.00016851]
[1763582005363,0.37502,89033.0,89032.0,0.00236654]
[1763582005564,0.37502,89033.0,89032.0,0.02598654]
[1763582005765,0.37502,89033.0,89032.0,0.05001654]
[1763582006157,0.45,89041.0,89040.0,0.02355]
[1763582006158,0.09061,89041.0,89040.0,0.02355]
[1763582006461,0.09202,89041.0,89040.0,0.16221413]
[1763582006668,0.09202,89041.0,89040.0,0.04977803]
[1763582007360,0.3608,89042.0,89041.0,0.1600148]
[1763582007566,0.10884,89044.0,89043.0,0.04758]
[1763582007760,0.10884,89044.0,89043.0,0.04977803]
[1763582007953,0.00016831,89049.0,89048.0,0.160006]
[1763582008156,0.00016831,89049.0,89048.0,0.16220403]
[1763582010570,0.3608,89059.0,89058.0,0.1599934]
[1763582010760,0.3608,89059.0,89058.0,0.00219803]
[1763582010761,0.36362,89059.0,89058.0,0.00219803]
[1763582010962,0.36362,89059.0,89045.0,0.05349235]
[1763582010963,0.00282,89049.0,89048.0,0.03025624]
[1763582011162,0.3608,89059.0,89046.0,0.07783624]
[1763582011163,0.00282,89047.0,89046.0,0.07783624]
[1763582011362,0.00282,89047.0,89046.0,0.08003427]
[1763582011567,0.00282,89047.0,89046.0,0.04977803]
[1763582012260,0.00282,89047.0,89046.0,0.00219803]
[1763582012658,0.3608,89048.0,89040.0,0.03025624]
[1763582012855,0.7216,89048.0,89046.0,0.00219803]
[1763582013062,0.00219803,89047.0,89033.0,0.03025624]
[1763582013362,0.00219803,89047.0,89034.0,0.00073267]
[1763582013565,0.3608,89035.0,89034.0,0.00073267]
[1763582013770,0.36299803,89035.0,89034.0,0.00073267]
[1763582014269,0.36299803,89035.0,89034.0,0.15751637]
[1763582014471,0.36299803,89035.0,89034.0,0.04507267]
[1763582015370,0.00219803,89035.0,89034.0,0.04507267]
[1763582016376,0.00219803,89035.0,89034.0,0.0753311]
[1763582016666,0.1088,89040.0,89039.0,0.1567774]
[1763582016874,0.3608,89048.0,89047.0,0.1567673]
[1763582017059,0.3608,89058.0,89057.0,0.1567546]
[1763582017261,0.36299803,89058.0,89057.0,0.15748727]
[1763582017871,0.36299803,89058.0,89057.0,0.04507267]
[1763582018865,0.36299803,89058.0,89052.0,0.01314]
[1763582019066,0.3608,89056.0,89049.0,0.00016851]
[1763582019265,0.00219803,89050.0,89049.0,0.00016851]
[1763582019876,0.00219803,89050.0,89049.0,0.00090118]
[1763582020076,0.00219803,89050.0,89049.0,0.00016851]
[1763582023368,0.00219803,89050.0,89030.0,0.03736]
[1763582023671,0.3608,89032.0,89031.0,0.04434]
[1763582023975,0.36299803,89032.0,89031.0,0.04507267]
[1763582024570,0.00219803,89032.0,89031.0,0.04507267]
[1763582025874,0.1088,89033.0,89031.0,0.04507267]
[1763582026077,0.36096851,89040.0,89039.0,0.1567774]
[1763582026370,0.00016851,89040.0,89039.0,0.15751007]
[1763582026571,0.00016851,89040.0,89039.0,0.51831007]
[1763582026774,0.3608,89054.0,89053.0,0.1124197]
[1763582026981,0.47179803,89054.0,89053.0,0.15749237]
[1763582027477,0.11099803,89054.0,89053.0,0.15749237]
[1763582029570,0.1088,89054.0,89053.0,0.15749237]
[1763582030377,0.11099803,89054.0,89053.0,0.15749237]
[1763582030571,0.1088,89054.0,89053.0,0.15749237]
[1763582030885,0.3608,89071.0,89070.0,0.04434]
[1763582031180,0.47179803,89071.0,89070.0,0.15747087]
[1763582031371,0.47179803,89071.0,89070.0,0.04507267]
[1763582032068,0.47179803,89071.0,89070.0,0.02228267]
[1763582032668,0.47179803,89071.0,89070.0,0.04507267]
[1763582033485,0.47179803,89071.0,89070.0,0.02228267]
[1763582033682,0.47179803,89071.0,89070.0,0.00073267]
[1763582034273,0.47179803,89071.0,89070.0,0.02228267]
[1763582034486,0.47179803,89071.0,89070.0,0.00073267]
[1763582038083,0.47179803,89071.0,89070.0,0.04507267]
[1763582038390,0.00219803,89071.0,89070.0,0.04507267]
[1763582040893,0.11099803,89071.0,89070.0,0.00073267]
[1763582041390,0.11099803,89071.0,89062.0,0.00016841]
[1763582041391,0.55103336,89071.0,89062.0,0.00016841]
[1763582041585,0.3608,89063.0,89062.0,0.00016841]
[1763582041784,0.36299803,89063.0,89044.0,0.05218813]
[1763582041985,0.36299803,89063.0,89040.0,0.05347235]
[1763582041986,0.3608,89046.0,89045.0,0.00073267]
[1763582042185,0.47179803,89046.0,89045.0,0.04521267]
[1763582043090,0.47179803,89046.0,89045.0,0.02267267]
[1763582043297,0.47179803,89046.0,89045.0,0.15764247]
[1763582043996,0.47179803,89046.0,89045.0,0.04521267]
[1763582044298,0.47179803,89046.0,89045.0,0.15764247]
[1763582044498,0.47179803,89046.0,89045.0,0.04521267]
[1763582044996,0.47179803,89046.0,89045.0,0.00073267]
[1763582045795,0.47179803,89046.0,89040.0,0.01314]
[1763582045990,0.47179803,89046.0,89040.0,0.03581267]
[1763582046590,0.47179803,89046.0,89045.0,0.04448]
[1763582046799,0.47179803,89046.0,89045.0,0.15764247]
[1763582047100,0.47179803,89046.0,89045.0,0.04521267]
[1763582048097,0.47179803,89046.0,89045.0,0.02267267]
[1763582049301,0.11099803,89046.0,89045.0,0.04521267]
[1763582049499,0.36096809,89054.0,89053.0,0.04448]
[1763582049694,0.36096809,89054.0,89053.0,0.04521267]
[1763582049695,0.00016809,89054.0,89053.0,0.04521267]
[1763582050198,0.00016809,89054.0,89053.0,0.15763237]
[1763582051092,0.00236612,89054.0,89053.0,0.15763237]
[1763582051301,0.00016809,89054.0,89053.0,0.15763237]
[1763582051505,0.00016809,89054.0,89053.0,0.51843237]
[1763582052701,0.3608,89069.0,89068.0,0.1568807]
[1763582052898,0.36299803,89069.0,89068.0,0.15761337]
[1763582053994,0.00219803,89069.0,89068.0,0.15761337]
[1763582054797,0.00219803,89069.0,89068.0,0.04521267]
[1763582056002,0.3608,89077.0,89076.0,0.1568707]
[1763582056302,0.00028063,89086.0,89085.0,0.1123793]
[1763582056500,0.05814,89100.0,89099.0,0.1123616]
[1763582056704,0.06033803,89100.0,89099.0,0.11309427]
[1763582057411,0.03737803,89100.0,89099.0,0.11309427]
[1763582057906,0.06033803,89100.0,89099.0,0.11309427]
[1763582058602,0.01386,89100.0,89099.0,0.11309427]
[1763582058998,0.1088,89114.0,89110.0,0.1123478]
[1763582059307,0.1088,89114.0,89110.0,0.11308047]
[1763582059602,0.01367803,89111.0,89110.0,0.11308047]
[1763582060591,0.03499803,89111.0,89110.0,0.11308047]
[1763582061206,0.05795803,89111.0,89110.0,0.00073267]
[1763582061803,0.01367803,89111.0,89110.0,0.00073267]
[1763582062000,0.10876,89123.0,89121.0,0.1123339]
[1763582062311,0.01605803,89122.0,89121.0,0.47386657]
[1763582062502,0.01386,89122.0,89121.0,0.47386657]
[1763582062804,0.0002805,89126.0,89125.0,0.1123289]
[1763582063104,0.0002805,89126.0,89125.0,0.11306157]
[1763582063505,0.03518,89133.0,89132.0,0.11232]
[1763582063804,0.05814,89133.0,89132.0,0.11305267]
[1763582064110,0.06033803,89133.0,89132.0,0.00073267]
[1763582064811,0.42113803,89133.0,89132.0,0.00073267]
[1763582065704,0.06033803,89133.0,89132.0,0.00073267]
[1763582065907,0.16909803,89133.0,89132.0,0.00073267]
[1763582066113,0.16909803,89133.0,89132.0,0.36153267]
[1763582066712,0.00219803,89133.0,89132.0,0.36153267]
[1763582066913,0.0137,89133.0,89132.0,0.36153267]
[1763582067104,0.0137,89133.0,89132.0,0.47385267]
[1763582067105,0.01589803,89133.0,89132.0,0.47385267]
[1763582067306,0.03818803,89133.0,89132.0,0.47385267]
[1763582067507,0.06035803,89133.0,89132.0,0.36153267]
[1763582067706,0.06035803,89133.0,89132.0,0.00073267]
[1763582068106,0.06035803,89133.0,89132.0,0.36153267]
[1763582069607,0.04446,89115.0,89114.0,0.3608]
[1763582069911,0.04665803,89115.0,89114.0,0.00073267]
[1763582070117,0.04446,89114.0,89113.0,0.00016831]
[1763582070306,0.04446,89101.0,89100.0,0.21281467]
[1763582070610,0.04665803,89101.0,89100.0,0.00073267]
[1763582071406,0.04665803,89101.0,89100.0,0.00173267]
[1763582072713,0.04665803,89101.0,89100.0,0.001]
[1763582073114,0.04335,89093.0,89092.0,0.00030814]
[1763582073310,0.04554803,89093.0,89092.0,0.11341131]
[1763582073810,0.04554803,89093.0,89092.0,0.00104081]
[1763582074812,0.04554803,89093.0,89092.0,0.00030814]
[1763582075116,0.04335,89084.0,89083.0,0.3608]
[1763582075313,0.01368,89076.0,89070.0,0.32521267]
[1763582075511,0.01368,89076.0,89071.0,0.00073267]
[1763582075512,0.04335,89072.0,89071.0,0.00073267]
[1763582075712,0.04554803,89072.0,89071.0,0.00073267]
[1763582076112,0.04568223,89072.0,89071.0,0.00073267]
[1763582077419,0.0001342,89072.0,89071.0,0.00073267]
[1763582078412,0.01368,89076.0,89071.0,0.00073267]
[1763582078612,0.01368,89076.0,89075.0,0.4731919]
[1763582078813,0.01368,89076.0,89075.0,0.47392457]
[1763582079518,0.01368,89076.0,89075.0,0.50416315]
[1763582079718,0.05922803,89076.0,89075.0,0.50416315]
[1763582079908,0.05922803,89076.0,89075.0,0.47392457]
[1763582080109,0.05922803,89076.0,89075.0,0.36153267]
[1763582082324,0.01368,89076.0,89075.0,0.36153267]
[1763582084520,0.01587803,89076.0,89075.0,0.36153267]
[1763582084726,0.03773803,89076.0,89075.0,0.36153267]
[1763582085019,0.01587803,89076.0,89075.0,0.36153267]
[1763582085620,0.01368,89076.0,89075.0,0.36153267]
[1763582085925,0.01587803,89076.0,89075.0,0.36153267]
[1763582086624,0.05922803,89076.0,89075.0,0.36153267]
[1763582087415,0.01368,89076.0,89075.0,0.36153267]
[1763582087815,0.00016831,89080.0,89075.0,0.36153267]
[1763582088023,0.10872,89097.0,89088.0,0.1123755]
[1763582088024,0.01368,89089.0,89088.0,0.1123755]
[1763582088222,0.05922803,89089.0,89088.0,0.47390817]
[1763582088415,0.05922803,89089.0,89088.0,0.36153267]
[1763582089314,0.05922803,89089.0,89088.0,0.00073267]
[1763582089511,0.04335,89081.0,89080.0,0.00016831]
[1763582089719,0.04554803,89081.0,89080.0,0.11328658]
[1763582091026,0.00219803,89081.0,89080.0,0.11328658]
[1763582091322,0.04554803,89081.0,89080.0,0.11328658]
[1763582095021,0.04554803,89081.0,89080.0,0.00090098]
[1763582095224,0.04554803,89081.0,89080.0,0.00016831]
[1763582095615,0.04554803,89081.0,89080.0,0.00090098]
[1763582096614,0.02186,89079.0,89078.0,0.32670098]
[1763582096819,0.04335,89075.0,89074.0,0.1123926]
[1763582097019,0.04554803,89075.0,89074.0,0.1123926]
[1763582097420,0.04554803,89075.0,89074.0,0.14253098]
[1763582098014,0.04554803,89075.0,89074.0,0.1133926]
[1763582098514,0.04554803,89075.0,89074.0,0.15372495]
[1763582098928,0.01368,89078.0,89077.0,0.1123894]
[1763582099227,0.01368,89078.0,89077.0,0.4731894]
[1763582099617,0.05703,89089.0,89088.0,0.1123755]
[1763582099815,0.05703,89089.0,89088.0,0.14265883]
[1763582099816,0.05922803,89089.0,89088.0,0.14265883]
[1763582100020,0.05922803,89089.0,89088.0,0.1123755]
[1763582100219,0.05922803,89089.0,89088.0,0.14265883]
[1763582100419,0.05922803,89089.0,89088.0,0.1123755]
[1763582101224,0.02202796,89097.0,89096.0,0.1123654]
[1763582101530,0.00236599,89097.0,89096.0,0.4731654]
[1763582101922,0.04556599,89097.0,89096.0,0.4731654]
[1763582102117,0.04556599,89097.0,89096.0,0.53374942]
[1763582102430,0.02202796,89097.0,89096.0,0.53374942]
[1763582102622,0.00016796,89097.0,89096.0,0.53374942]
[1763582102825,0.04479599,89097.0,89096.0,0.53374942]
[1763582103025,0.04479599,89097.0,89096.0,0.4731654]
[1763582103219,0.00016796,89097.0,89096.0,0.4731654]
[1763582103827,0.00236599,89097.0,89096.0,0.4731654]
[1763582104621,6e-08,89100.0,89099.0,0.1123617]
[1763582104827,0.10876,89114.0,89113.0,0.126524]
[1763582105139,0.00219803,89114.0,89113.0,0.487324]
[1763582105430,0.3608,89139.0,89113.0,0.487324]
[1763582105431,0.01368,89133.0,89125.0,0.1265089]
[1763582105631,0.00247853,89126.0,89125.0,0.4873089]
[1763582105937,0.0002805,89126.0,89125.0,0.4873089]
[1763582106135,0.01368,89133.0,89125.0,0.4873089]
[1763582106434,1e-08,89134.0,89133.0,0.04154]
[1763582106635,1e-08,89134.0,89133.0,0.40234]
[1763582108732,0.3608,89158.0,89143.0,0.04154]
[1763582108931,0.05774803,89144.0,89143.0,0.4938762]
[1763582109131,0.05774803,89144.0,89143.0,0.5146462]
[1763582109132,0.05555,89144.0,89143.0,0.5146462]
[1763582109332,0.05555,89155.0,89154.0,0.1538323]
[1763582109629,0.05583038,89166.0,89165.0,0.1122785]
[1763582109826,0.05802841,89166.0,89165.0,0.1122785]
[1763582110639,0.04243,89158.0,89157.0,0.00016831]
[1763582110826,0.04462803,89158.0,89157.0,0.00016831]
[1763582111337,0.04462803,89158.0,89157.0,0.13322691]
[1763582111530,0.04462803,89158.0,89157.0,0.00016831]
[1763582112332,0.05555,89155.0,89154.0,0.32596831]
[1763582112535,0.05774803,89155.0,89154.0,0.32596831]
[1763582112731,0.05774803,89155.0,89154.0,0.43826061]
[1763582112937,0.05774803,89155.0,89154.0,0.32596831]
[1763582113235,0.05774803,89155.0,89146.0,0.1123012]
[1763582113236,0.04243,89147.0,89146.0,0.1123012]
[1763582113434,0.04462803,89147.0,89146.0,0.1123012]
[1763582114043,0.04462803,89147.0,89146.0,0.1572312]